fUST/lending_fUST_20251004
["ID","MTS","AMOUNT","RATE_DAILY","PERIOD"]
[389154734,1759591916089,-500.0,0.00022465,3]
[389154735,1759591916098,-3160.55,0.00022465,3]
[389154736,1759591916108,-1519.75,0.00022465,3]
[389154737,1759591916117,-1300.89,0.00022465,3]
[389154738,1759591916126,-2067.67,0.00022465,3]
[389154739,1759591916135,-614.77,0.00022465,3]
[389154740,1759591916145,-857.26,0.00022465,3]
[389154741,1759591916154,-560.4,0.00022465,3]
[389154742,1759591916163,-500.0,0.00022465,3]
[389154743,1759591916173,-731.76,0.00022465,3]
[389154744,1759591916182,-1254.52,0.00022465,3]
[389154745,1759591916198,-500.0,0.00022465,3]
[389154746,1759591916208,-1479.56,0.00022465,3]
[389154747,1759591916218,-3943.88,0.00022465,3]
[389154748,1759591916227,-500.0,0.00022465,3]
[389154749,1759591916237,-1175.17,0.00022465,3]
[389154750,1759591916246,-1420.43,0.00022465,3]
[389154751,1759591916258,-3237.92,0.00022465,3]
[389154752,1759591916268,-1919.12,0.00022465,3]
[389154753,1759591916278,-968.29,0.00022465,3]
[389154754,1759591916289,-668.17,0.00022465,3]
[389154755,1759591916299,-4834.1,0.00022465,3]
[389154756,1759591916309,-863.7,0.00022465,3]
[389154757,1759591916319,-4308.41,0.00022465,3]
[389154758,1759591916331,-1158.05,0.00022465,3]
[389154759,1759591916341,-500.0,0.00022465,3]
[389154760,1759591916351,-1128.4,0.00022465,3]
[389154761,1759591916360,-500.0,0.00022465,3]
[389154762,1759591916370,-1888.79,0.00022465,3]
[389154763,1759591916380,-500.0,0.00022465,3]
[389154764,1759591916389,-500.0,0.00022465,3]
[389154765,1759591916399,-3598.98,0.00022465,3]
[389154766,1759591916409,-500.0,0.00022465,3]
[389154767,1759591916419,-500.0,0.00022465,3]
[389154768,1759591916428,-3279.78,0.00022465,3]
[389154769,1759591916439,-2623.19,0.00022465,3]
[389154770,1759591916451,-500.0,0.00022465,3]
[389154771,1759591916460,-1046.7,0.00022465,3]
[389154772,1759591916469,-500.0,0.00022465,3]
[389154773,1759591916479,-916.44,0.00022465,3]
[389154774,1759591916488,-649.69,0.00022465,3]
[389154775,1759591916498,-500.0,0.00022465,3]
[389154776,1759591916507,-716.0,0.00022465,3]
[389154777,1759591916517,-502.19,0.00022465,3]
[389154778,1759591916527,-692.99,0.00022465,3]
[389154779,1759591916537,-1677.96,0.00022465,3]
[389154780,1759591916546,-725.08,0.00022465,3]
[389154781,1759591916557,-500.0,0.00022465,3]
[389154782,1759591916567,-543.32,0.00022465,3]
[389154783,1759591916576,-1956.57,0.00022465,3]
[389154784,1759591916586,-2622.01,0.00022465,3]
[389154785,1759591916596,-685.43,0.00022465,3]
[389154786,1759591916605,-4582.94,0.00022465,3]
[389154787,1759591916616,-1066.95,0.00022465,3]
[389154788,1759591916625,-1558.65,0.00022465,3]
[389154789,1759591916635,-620.36,0.00022465,3]
[389154790,1759591916645,-583.58,0.00022465,3]
[389154791,1759591916655,-850.74,0.00022465,3]
[389154792,1759591916665,-500.0,0.00022465,3]
[389154793,1759591916675,-782.55,0.00022465,3]
[389154794,1759591916685,-500.0,0.00022465,3]
[389154795,1759591916698,-168.44422022,0.00022465,3]
[389154796,1759591916708,-837.9,0.00022465,3]
[389154797,1759591916717,-1154.37,0.00022465,3]
[389154798,1759591916727,-2615.62,0.00022465,3]
[389154799,1759591916737,-613.77,0.00022465,3]
[389154800,1759591916746,-695.31,0.00022465,3]
[389154801,1759591916756,-633.24,0.00022465,3]
[389154802,1759591916766,-3304.75,0.00022465,3]
[389154803,1759591916776,-1142.91,0.00022465,3]
[389154804,1759591916787,-1593.05,0.00022465,3]
[389154805,1759591916796,-1681.94,0.00022465,3]
[389154806,1759591916806,-2044.74,0.00022465,3]
[389154807,1759591916816,-943.18,0.00022465,3]
[389154808,1759591916825,-1325.84,0.00022465,3]
[389154809,1759591916835,-1462.47,0.00022465,3]
[389154810,1759591916845,-894.67,0.00022465,3]
[389154811,1759591916854,-1441.01,0.00022465,3]
[389154812,1759591916868,-948.86,0.00022465,3]
[389154813,1759591916879,-582.49,0.00022465,3]
[389154814,1759591916888,-1083.58,0.00022465,3]
[389154815,1759591916898,-2269.4,0.00022465,3]
[389154816,1759591916908,-859.66,0.00022465,3]
[389154817,1759591916918,-7279.62,0.00022465,3]
[389154818,1759591916928,-375.09004073,0.00022465,3]
[389154819,1759591916938,-885.0,0.00022465,3]
[389154820,1759591916948,-500.0,0.00022465,3]
[389154821,1759591917018,-2242.57,0.00022465,3]
[389154822,1759591917028,-521.71,0.00022465,3]
[389154823,1759591917036,-1253.86,0.00022465,3]
[389154824,1759591917046,-1820.23,0.00022465,3]
[389154825,1759591917055,-1593.62,0.00022465,3]
[389154826,1759591917065,-500.0,0.00022465,3]
[389154827,1759591917074,-2434.85,0.00022465,3]
[389154828,1759591917083,-500.0,0.00022465,3]
[389154829,1759591917092,-983.67,0.00022465,3]
[389154830,1759591917102,-1438.86,0.00022465,3]
[389154831,1759591917111,-3420.09,0.00022465,3]
[389154832,1759591917120,-1155.35,0.00022465,3]
[389154833,1759591917130,-883.76,0.00022465,3]
[389154834,1759591917139,-500.0,0.00022465,3]
[389154835,1759591917149,-669.76,0.00022465,3]
[389154836,1759591917158,-1284.14,0.00022465,3]
[389154837,1759591917168,-5883.16,0.00022465,3]
[389154838,1759591917177,-5418.8,0.00022465,3]
[389154839,1759591917187,-500.0,0.00022465,3]
[389154840,1759591917197,-1049.37,0.00022465,3]
[389154841,1759591917207,-659.62,0.00022465,3]
[389154842,1759591917216,-599.3,0.00022465,3]
[389154843,1759591917225,-6787.62,0.00022465,3]
[389154844,1759591917235,-1550.12,0.00022465,3]
[389154845,1759591917245,-645.14,0.00022465,3]
[389154846,1759591917255,-1658.15,0.00022465,3]
[389154847,1759591917264,-500.0,0.00022466,2]
[389154848,1759591917275,-500.0,0.00022466,2]
[389154849,1759591917285,-151.0,0.00022466,2]
[389154850,1759591917294,-202.4236532,0.00022466,2]
[389154851,1759591917304,-151.0,0.00022466,2]
[389154852,1759591917313,-500.0,0.00022466,2]
[389154853,1759591917322,-303.8314969,0.00022466,2]
[389154854,1759591917331,-151.0,0.00022466,2]
[389154855,1759591917341,-151.5047233,0.00022466,2]
[389154856,1759591917351,-1443.0,0.00022466,2]
[389154857,1759591917361,-500.0,0.00022466,2]
[389154858,1759591917370,-400.91228481,0.00022466,2]
[389154859,1759591917380,-186.44778959,0.00022466,2]
[389154860,1759591917390,-364.60583077,0.00022466,2]
[389154861,1759591917400,-500.0,0.00022466,2]
[389154862,1759591917409,-500.0,0.00022466,2]
[389154863,1759591917419,-500.0,0.00022466,2]
[389154864,1759591917429,-4268.80322432,0.00022473,2]
[389154865,1759591917438,-155.0,0.00022483,2]
[389154866,1759591917450,-300.0,0.00022495,2]
[389154867,1759591917459,-500.0,0.00022507,2]
[389154868,1759591917468,-939.8707835,0.00022512,2]
[389154869,1759591917478,-545.74064434,0.00022512,2]
[389154870,1759591917487,-3000.0,0.00022512,2]
[389154871,1759591917497,-3000.0,0.00022512,2]
[389154872,1759591917506,-1408.49496331,0.00022512,2]
[389154873,1759591917516,-3000.0,0.00022512,2]
[389154874,1759591917527,-3000.0,0.00022512,2]
[389154875,1759591917536,-293.52280873,0.000226,3]
[389154876,1759591917546,-160.0,0.000226,3]
[389154877,1759591917555,-730.702,0.0002262,15]
[389154878,1759591917564,-502.01501346,0.00022668,2]
[389154879,1759591917573,-500.0,0.00022687,2]
[389154880,1759591917583,-3000.0,0.00022712,2]
[389154881,1759591917592,-3000.0,0.00022712,2]
[389154882,1759591917601,-500.0,0.00022739,3]
[389154883,1759591917611,-1039.39,0.00022739,3]
[389154884,1759591917619,-507.83,0.00022739,3]
[389154885,1759591917628,-151.0,0.00022739,7]
[389154886,1759591917637,-151.0,0.00022739,7]
[389154887,1759591917646,-151.0,0.00022739,7]
[389154888,1759591917655,-151.0,0.00022739,7]
[389154889,1759591917665,-500.0,0.00022739,3]
[389154890,1759591917674,-1109.72,0.00022739,3]
[389154891,1759591917683,-151.0,0.00022739,7]
[389154892,1759591917694,-237.284514,0.00022739,7]
[389154893,1759591917704,-658.4,0.00022739,3]
[389154894,1759591917713,-500.0,0.00022739,3]
[389154895,1759591917723,-500.0,0.00022739,3]
[389154896,1759591917732,-1722.53,0.00022739,3]
[389154897,1759591917742,-500.0,0.00022739,3]
[389154898,1759591917751,-500.0,0.00022739,3]
[389154899,1759591917762,-561.02,0.00022739,3]
[389154900,1759591917772,-500.0,0.00022739,3]
[389154901,1759591917782,-500.0,0.00022739,3]
[389154902,1759591917791,-606.7,0.00022739,3]
[389154903,1759591917801,-576.96,0.00022739,3]
[389154904,1759591917810,-500.0,0.00022739,3]
[389154905,1759591917820,-815.78,0.00022739,3]
[389154906,1759591917830,-500.0,0.00022739,3]
[389154907,1759591917840,-500.0,0.00022739,3]
[389154908,1759591917849,-551.35,0.00022739,3]
[389154909,1759591917861,-503.54,0.00022739,3]
[389154910,1759591917870,-552.14,0.00022739,3]
[389154911,1759591917880,-181.21919538,0.00022739,3]
[389154912,1759591917890,-983.77,0.00022739,3]
[389154913,1759591917899,-717.9,0.00022739,3]
[389154914,1759591917908,-535.53,0.00022739,3]
[389154915,1759591917918,-539.76,0.00022739,3]
[389154916,1759591917928,-1081.73,0.00022739,3]
[389154917,1759591917938,-785.95,0.00022739,3]
[389154918,1759591917951,-500.0,0.00022739,3]
[389154919,1759591917961,-996.16,0.00022739,3]
[389154920,1759591917971,-500.0,0.00022739,3]
[389154921,1759591917981,-1061.25,0.00022739,3]
[389154922,1759591917991,-500.0,0.00022739,3]
[389154923,1759591918001,-1035.1,0.00022739,3]
[389154924,1759591918011,-571.62,0.00022739,3]
[389154925,1759591918020,-940.09,0.00022739,3]
[389154926,1759591918031,-500.0,0.00022739,3]
[389154927,1759591918040,-500.0,0.00022739,3]
[389154928,1759591918050,-685.26,0.00022739,3]
[389154929,1759591918060,-1089.32,0.00022739,3]
[389154930,1759591918070,-521.57,0.00022739,3]
[389154931,1759591918080,-337.29365768,0.00022739,3]
[389154932,1759591918090,-500.0,0.00022739,3]
[389154933,1759591918099,-500.0,0.00022739,3]
[389154934,1759591918108,-556.89,0.00022739,3]
[389154935,1759591918118,-500.0,0.00022739,3]
[389154936,1759591918127,-935.25,0.00022739,3]
[389154937,1759591918137,-638.24,0.00022739,3]
[389154938,1759591918146,-500.0,0.00022739,3]
[389154939,1759591918156,-3190.15,0.00022739,3]
[389154940,1759591918165,-500.0,0.00022739,3]
[389154941,1759591918175,-500.0,0.00022739,3]
[389154942,1759591918184,-1767.35,0.00022739,3]
[389154943,1759591918198,-159.59902133,0.00022739,3]
[389154944,1759591918208,-500.0,0.00022739,3]
[389154945,1759591918218,-1021.71,0.00022739,3]
[389154946,1759591918228,-722.22,0.00022739,3]
[389154947,1759591918238,-512.79,0.00022739,3]
[389154948,1759591918248,-500.0,0.00022739,3]
[389154949,1759591918257,-1130.19,0.00022739,3]
[389154950,1759591918267,-539.07407112,0.00022739,3]
[389154951,1759591918278,-594.94,0.00022739,3]
[389154952,1759591918288,-500.0,0.00022739,3]
[389154953,1759591918298,-1634.65,0.00022739,3]
[389154954,1759591918308,-755.21,0.00022739,3]
[389154955,1759591918318,-638.84,0.00022739,3]
[389154956,1759591918328,-1184.66,0.00022739,3]
[389154957,1759591918338,-1037.44,0.00022739,3]
[389154958,1759591918348,-500.0,0.00022739,3]
[389154959,1759591918357,-1102.84,0.00022739,3]
[389154960,1759591918367,-500.0,0.00022739,3]
[389154961,1759591918377,-500.0,0.00022739,3]
[389154962,1759591918387,-888.19,0.00022739,3]
[389154963,1759591918397,-500.0,0.00022739,3]
[389154964,1759591918406,-707.88,0.00022739,3]
[389154965,1759591918416,-312.53620576,0.00022739,3]
[389154966,1759591918425,-3472.11,0.00022739,3]
[389154967,1759591918435,-607.97,0.00022739,3]
[389154968,1759591918448,-500.0,0.00022739,3]
[389154969,1759591918459,-2253.27,0.00022739,3]
[389154970,1759591918469,-500.0,0.00022739,3]
[389154971,1759591918478,-1207.5,0.00022739,3]
[389154972,1759591918488,-896.72,0.00022739,3]
[389154973,1759591918498,-1747.71,0.00022739,3]
[389154974,1759591918508,-500.0,0.00022739,3]
[389154975,1759591918518,-595.63,0.00022739,3]
[389154976,1759591918528,-500.0,0.00022739,2]
[389154977,1759591918538,-827.71,0.00022739,3]
[389154978,1759591918548,-504.25,0.00022739,3]
[389154979,1759591918558,-500.0,0.00022739,3]
[389154980,1759591918569,-890.07,0.00022739,3]
[389154981,1759591918579,-914.63,0.00022739,3]
[389154982,1759591918589,-1015.82,0.00022739,3]
[389154983,1759591918599,-500.0,0.00022739,3]
[389154984,1759591918610,-500.0,0.00022739,3]
[389154985,1759591918620,-532.07,0.00022739,3]
[389154986,1759591918630,-870.38,0.00022739,3]
[389154987,1759591918640,-500.0,0.00022739,3]
[389154988,1759591918649,-3160.55,0.00022739,3]
[389154989,1759591918659,-1519.75,0.00022739,3]
[389154990,1759591918669,-1300.89,0.00022739,3]
[389154991,1759591918679,-2067.67,0.00022739,3]
[389154992,1759591918690,-614.77,0.00022739,3]
[389154993,1759591918703,-857.26,0.00022739,3]
[389154994,1759591918712,-560.4,0.00022739,3]
[389154995,1759591918722,-500.0,0.00022739,3]
[389154996,1759591918732,-731.76,0.00022739,3]
[389154997,1759591918743,-1254.52,0.00022739,3]
[389154998,1759591918753,-500.0,0.00022739,3]
[389154999,1759591918763,-1479.56,0.00022739,3]
[389155000,1759591918772,-3943.88,0.00022739,3]
[389155001,1759591918782,-500.0,0.00022739,3]
[389155002,1759591918793,-1175.17,0.00022739,3]
[389155003,1759591918803,-1420.43,0.00022739,3]
[389155004,1759591918812,-3237.92,0.00022739,3]
[389155005,1759591918822,-1919.12,0.00022739,3]
[389155006,1759591918833,-968.29,0.00022739,3]
[389155007,1759591918842,-668.17,0.00022739,3]
[389155008,1759591918854,-4834.1,0.00022739,3]
[389155009,1759591918868,-863.7,0.00022739,3]
[389155010,1759591918878,-4308.41,0.00022739,3]
[389155011,1759591918888,-1158.05,0.00022739,3]
[389155012,1759591918898,-500.0,0.00022739,3]
[389155013,1759591918908,-1128.4,0.00022739,3]
[389155014,1759591918918,-500.0,0.00022739,3]
[389155015,1759591918927,-1888.79,0.00022739,3]
[389155016,1759591918937,-500.0,0.00022739,3]
[389155017,1759591918950,-500.0,0.00022739,3]
[389155018,1759591918961,-3598.98,0.00022739,3]
[389155019,1759591918971,-500.0,0.00022739,3]
[389155020,1759591918981,-500.0,0.00022739,3]
[389155021,1759591918991,-3279.78,0.00022739,3]
[389155022,1759591919001,-2623.19,0.00022739,3]
[389155023,1759591919011,-500.0,0.00022739,3]
[389155024,1759591919022,-1046.7,0.00022739,3]
[389155025,1759591919033,-500.0,0.00022739,3]
[389155026,1759591919043,-916.44,0.00022739,3]
[389155027,1759591919053,-649.69,0.00022739,3]
[389155028,1759591919063,-500.0,0.00022739,3]
[389155029,1759591919073,-716.0,0.00022739,3]
[389155030,1759591919083,-502.19,0.00022739,3]
[389155031,1759591919094,-692.99,0.00022739,3]
[389155032,1759591919109,-1677.96,0.00022739,3]
[389155033,1759591919119,-725.08,0.00022739,3]
[389155034,1759591919129,-543.32,0.00022739,3]
[389155035,1759591919139,-247.34902482,0.00022739,3]
[389155036,1759591919150,-1956.57,0.00022739,3]
[389155037,1759591919160,-2622.01,0.00022739,3]
[389155038,1759591919170,-685.43,0.00022739,3]
[389155039,1759591919181,-4582.94,0.00022739,3]
[389155040,1759591919195,-1066.95,0.00022739,3]
[389155041,1759591919206,-1558.65,0.00022739,3]
[389155042,1759591919216,-620.36,0.00022739,3]
[389155043,1759591919227,-583.58,0.00022739,3]
[389155044,1759591919237,-850.74,0.00022739,3]
[389155045,1759591919252,-500.0,0.00022739,3]
[389155046,1759591919262,-782.55,0.00022739,3]
[389155047,1759591919272,-500.0,0.00022739,3]
[389155048,1759591919282,-837.9,0.00022739,3]
[389155049,1759591919292,-1154.37,0.00022739,3]
[389155050,1759591919302,-2615.62,0.00022739,3]
[389155051,1759591919313,-613.77,0.00022739,3]
[389155052,1759591919323,-695.31,0.00022739,3]
[389155053,1759591919332,-633.24,0.00022739,3]
[389155054,1759591919343,-3304.75,0.00022739,3]
[389155055,1759591919353,-1142.91,0.00022739,3]
[389155056,1759591919363,-1593.05,0.00022739,3]
[389155057,1759591919374,-1681.94,0.00022739,3]
[389155058,1759591919384,-2044.74,0.00022739,3]
[389155059,1759591919395,-943.18,0.00022739,3]
[389155060,1759591919405,-1325.84,0.00022739,3]
[389155061,1759591919418,-1462.47,0.00022739,3]
[389155062,1759591919429,-894.67,0.00022739,3]
[389155063,1759591919439,-1441.01,0.00022739,3]
[389155064,1759591919451,-948.86,0.00022739,3]
[389155065,1759591919462,-582.49,0.00022739,3]
[389155066,1759591919472,-1083.58,0.00022739,3]
[389155067,1759591919482,-2269.4,0.00022739,3]
[389155068,1759591919491,-859.66,0.00022739,3]
[389155069,1759591919508,-7279.62,0.00022739,3]
[389155070,1759591919520,-885.0,0.00022739,3]
[389155071,1759591919531,-500.0,0.00022739,3]
[389155072,1759591919542,-2242.57,0.00022739,3]
[389155073,1759591919554,-521.71,0.00022739,3]
[389155074,1759591919564,-1253.86,0.00022739,3]
[389155075,1759591919574,-1820.23,0.00022739,3]
[389155076,1759591919584,-1593.62,0.00022739,3]
[389155077,1759591919595,-500.0,0.00022739,3]
[389155078,1759591919605,-2434.85,0.00022739,3]
[389155079,1759591919616,-500.0,0.00022739,3]
[389155080,1759591919626,-983.67,0.00022739,3]
[389155081,1759591919636,-1438.86,0.00022739,3]
[389155082,1759591919788,-3420.09,0.00022739,3]
[389155083,1759591919802,-1155.35,0.00022739,3]
[389155084,1759591919813,-883.76,0.00022739,3]
[389155085,1759591919822,-500.0,0.00022739,3]
[389155086,1759591919832,-669.76,0.00022739,3]
[389155087,1759591919842,-1284.14,0.00022739,3]
[389155088,1759591919853,-5883.16,0.00022739,3]
[389155089,1759591919865,-3175.05741545,0.00022739,3]
[389155090,1759591920247,-500.0,0.00019178,2]
[389155091,1759591920256,-686.1,0.00021917,2]
[389155092,1759591920266,-500.0,0.00022465,3]
[389155093,1759591920275,-2243.74258455,0.00022739,3]
[389155094,1759591920285,-500.0,0.00022739,3]
[389155095,1759591920294,-1049.37,0.00022739,3]
[389155096,1759591920304,-659.62,0.00022739,3]
[389155097,1759591920313,-599.3,0.00022739,3]
[389155098,1759591920322,-6787.62,0.00022739,3]
[389155099,1759591920332,-1550.12,0.00022739,3]
[389155100,1759591920341,-645.14,0.00022739,3]
[389155101,1759591920351,-737.14394392,0.00022739,3]
[389155102,1759591920362,-921.00605608,0.00022739,3]
[389155103,1759591920372,-168.79394392,0.0002274,2]
[389155104,1759591920706,-175.483277,0.00019178,2]
[389155105,1759591920716,-175.483277,0.00019451,2]
[389155106,1759591920727,-84.783446,0.00019452,2]
[389155107,1759591920744,-175.483277,0.00019178,2]
[389155108,1759591920754,-325.21147387,0.00019452,2]
[389155109,1759591921530,-374.23650633,0.00019178,2]
[389155110,1759591921539,-500.0,0.00019178,2]
[389155111,1759591921548,-500.0,0.00019178,2]
[389155112,1759591921558,-500.0,0.00019178,2]
[389155113,1759591921567,-500.0,0.00019178,2]
[389155114,1759591921576,-500.0,0.00019178,2]
[389155115,1759591921586,-175.483277,0.00019451,2]
[389155116,1759591921597,-90.00508013,0.00019452,2]
[389155117,1759591921606,-175.483277,0.00019452,2]
[389155118,1759591921616,-175.483277,0.00019452,2]
[389155119,1759591921625,-500.0,0.00019452,2]
[389155120,1759591921635,-500.0,0.00019452,2]
[389155121,1759591921644,-500.0,0.00019452,2]
[389155122,1759591921654,-500.0,0.00019452,2]
[389155123,1759591921663,-500.0,0.00019726,2]
[389155124,1759591921672,-175.483277,0.00019726,2]
[389155125,1759591921681,-175.483277,0.00019726,2]
[389155126,1759591921691,-500.0,0.00019726,2]
[389155127,1759591921702,-500.0,0.00019726,2]
[389155128,1759591921712,-500.0,0.00019726,2]
[389155129,1759591921723,-500.0,0.0002,2]
[389155130,1759591921732,-175.483277,0.0002,2]
[389155131,1759591921742,-175.483272,0.0002,2]
[389155132,1759591921751,-500.0,0.0002,2]
[389155133,1759591921760,-500.0,0.00020273,2]
[389155134,1759591921770,-500.0,0.00020273,2]
[389155135,1759591921780,-500.0,0.00020547,2]
[389155136,1759591921790,-500.0,0.00020547,2]
[389155137,1759591921799,-500.0,0.00020821,2]
[389155138,1759591921808,-500.0,0.00020821,2]
[389155139,1759591921817,-500.0,0.00021095,2]
[389155140,1759591921826,-500.0,0.00021095,2]
[389155141,1759591921835,-500.0,0.00021369,2]
[389155142,1759591921845,-500.0,0.00021369,2]
[389155143,1759591921856,-500.0,0.00021643,2]
[389155144,1759591921868,-500.0,0.00021917,2]
[389155145,1759591921878,-686.1,0.00022191,3]
[389155146,1759591921887,-500.0,0.00022191,3]
[389155147,1759591921898,-686.1,0.00022465,3]
[389155148,1759591921908,-500.0,0.00022739,3]
[389155149,1759591921918,-686.1,0.00022739,3]
[389155150,1759591922084,-331.20605608,0.0002274,2]
[389155151,1759591922095,-461.88976109,0.0002274,2]
[389155152,1759591922105,-184.19219115,0.0002274,2]
[389155153,1759591922114,-198.0,0.0002274,2]
[389155154,1759591922123,-500.0,0.0002274,2]
[389155155,1759591922133,-1443.0,0.0002274,2]
[389155156,1759591922142,-500.0,0.0002274,2]
[389155157,1759591922151,-500.0,0.0002274,2]
[389155158,1759591922161,-500.0,0.0002274,2]
[389155159,1759591922170,-2500.0,0.00022746,2]
[389155160,1759591922180,-800.0,0.0002276,2]
[389155161,1759591922189,-1007.59850993,0.0002276,2]
[389155162,1759591922201,-5000.0,0.00022764,2]
[389155163,1759591922211,-800.0,0.0002278,2]
[389155164,1759591922220,-500.0,0.00022781,2]
[389155165,1759591922229,-356.082226,0.00022783,2]
[389155166,1759591922239,-500.0,0.00022795,2]
[389155167,1759591922248,-800.0,0.00022813,2]
[389155168,1759591922257,-800.0,0.00022873,2]
[389155169,1759591922266,-2200.0,0.00022899,2]
[389155170,1759591922276,-293.52280873,0.000229,3]
[389155171,1759591922285,-160.0,0.000229,3]
[389155172,1759591922294,-660.0,0.00022988,2]
[389155173,1759591922303,-160.0,0.00023,3]
[389155174,1759591922313,-160.0,0.00023,3]
[389155175,1759591922322,-2000.0,0.00023,14]
[389155176,1759591922331,-1527.0,0.00023,14]
[389155177,1759591922340,-2000.0,0.00023,14]
[389155178,1759591922349,-160.0,0.00023,2]
[389155179,1759591922358,-1041.66666667,0.00023,2]
[389155180,1759591922368,-160.0,0.00023,2]
[389155181,1759591922377,-65341.98873579,0.00023,2]
[389155182,1759591922387,-4000.0,0.00023008,2]
[389155183,1759591922396,-2530.66069114,0.00023008,2]
[389155184,1759591922406,-4000.0,0.00023008,2]
[389155185,1759591922416,-4000.0,0.00023008,2]
[389155186,1759591922426,-4000.0,0.00023008,2]
[389155187,1759591922436,-4000.0,0.00023008,2]
[389155188,1759591922448,-155.0,0.00023012,2]
[389155189,1759591922457,-500.0,0.00023013,3]
[389155190,1759591922467,-1039.39,0.00023013,3]
[389155191,1759591922479,-507.83,0.00023013,3]
[389155192,1759591922492,-1109.72,0.00023013,3]
[389155193,1759591922502,-658.4,0.00023013,3]
[389155194,1759591922511,-500.0,0.00023013,3]
[389155195,1759591922520,-500.0,0.00023013,3]
[389155196,1759591922530,-1722.53,0.00023013,3]
[389155197,1759591922539,-500.0,0.00023013,3]
[389155198,1759591922549,-500.0,0.00023013,3]
[389155199,1759591922558,-561.02,0.00023013,3]
[389155200,1759591922568,-500.0,0.00023013,3]
[389155201,1759591922577,-500.0,0.00023013,3]
[389155202,1759591922586,-606.7,0.00023013,3]
[389155203,1759591922595,-576.96,0.00023013,3]
[389155204,1759591922605,-500.0,0.00023013,3]
[389155205,1759591922614,-815.78,0.00023013,3]
[389155206,1759591922623,-500.0,0.00023013,3]
[389155207,1759591922633,-500.0,0.00023013,3]
[389155208,1759591922641,-551.35,0.00023013,3]
[389155209,1759591922651,-503.54,0.00023013,3]
[389155210,1759591922660,-552.14,0.00023013,3]
[389155211,1759591922669,-983.77,0.00023013,3]
[389155212,1759591922679,-717.9,0.00023013,3]
[389155213,1759591922688,-535.53,0.00023013,3]
[389155214,1759591922701,-539.76,0.00023013,3]
[389155215,1759591922711,-1081.73,0.00023013,3]
[389155216,1759591922722,-785.95,0.00023013,3]
[389155217,1759591922731,-500.0,0.00023013,3]
[389155218,1759591922741,-996.16,0.00023013,3]
[389155219,1759591922750,-500.0,0.00023013,3]
[389155220,1759591922760,-1061.25,0.00023013,3]
[389155221,1759591922769,-1035.1,0.00023013,3]
[389155222,1759591922779,-940.09,0.00023013,3]
[389155223,1759591922788,-500.0,0.00023013,3]
[389155224,1759591922798,-500.0,0.00023013,3]
[389155225,1759591922807,-685.26,0.00023013,3]
[389155226,1759591922816,-1089.32,0.00023013,3]
[389155227,1759591922826,-500.0,0.00023013,3]
[389155228,1759591922836,-500.0,0.00023013,3]
[389155229,1759591922846,-556.89,0.00023013,3]
[389155230,1759591922856,-500.0,0.00023013,3]
[389155231,1759591922869,-935.25,0.00023013,3]
[389155232,1759591922878,-638.24,0.00023013,3]
[389155233,1759591922888,-3190.15,0.00023013,3]